[Event "*** Titled Tuesday Blitz"]
[Site "Chess.com"]
[Date "2021.03.09"]
[Round "6"]
[White "Grandmaster2B"]
[Black "GoltsevDmitry2000"]
[Result "1-0"]
[WhiteElo "2561"]
[BlackElo "2702"]
[TimeControl "180+1"]
[EndTime "11:10:26 PST"]
[Termination "Grandmaster2B won by resignation"]

1. e4 {[%clk 0:03:00.9]} 1... c5 {[%clk 0:02:58.5]} 2. Nf3 {[%clk 0:03:01.2]}
2... e6 {[%clk 0:02:58.9]} 3. d4 {[%clk 0:03:01.7]} 3... cxd4 {[%clk 0:02:58.8]}
4. Nxd4 {[%clk 0:03:02.6]} 4... a6 {[%clk 0:02:58.7]} 5. c4 {[%clk 0:03:03]}
5... Qc7 {[%clk 0:02:59]} 6. Nc3 {[%clk 0:03:02.8]} 6... Nf6 {[%clk 0:02:59.5]}
7. a3 {[%clk 0:03:02.8]} 7... Nc6 {[%clk 0:03:00]} 8. Be3 {[%clk 0:03:01.2]}
8... Bd6 {[%clk 0:02:59.8]} 9. g3 {[%clk 0:02:37.7]} 9... h5 {[%clk 0:02:58.5]}
10. Be2 {[%clk 0:02:37.5]} 10... Ne5 {[%clk 0:02:57.5]} 11. Rc1 {[%clk
0:02:36.6]} 11... b6 {[%clk 0:02:56.9]} 12. Qd2 {[%clk 0:02:36.7]} 12... Bb7
{[%clk 0:02:56.9]} 13. Ndb5 {[%clk 0:02:34.6]} 13... axb5 {[%clk 0:02:55.8]} 14.
Nxb5 {[%clk 0:02:35.5]} 14... Qc6 {[%clk 0:02:49.9]} 15. Qxd6 {[%clk 0:02:34.3]}
15... Neg4 {[%clk 0:02:42.9]} 16. Nc7+ {[%clk 0:02:31.3]} 16... Kd8 {[%clk
0:02:40.8]} 17. Qxc6 {[%clk 0:02:31.3]} 17... Bxc6 {[%clk 0:02:37.3]} 18. Nxa8
{[%clk 0:02:31.6]} 18... Nxe3 {[%clk 0:02:37.4]} 19. Nxb6 {[%clk 0:02:26.3]}
19... Bxe4 {[%clk 0:02:31.4]} 20. Rg1 {[%clk 0:02:20.8]} 20... Nf5 {[%clk
0:02:27.2]} 21. f3 {[%clk 0:02:16.3]} 21... Bc6 {[%clk 0:02:26.8]} 22. Kf2
{[%clk 0:02:16.4]} 22... Nd4 {[%clk 0:02:22.8]} 23. Rgd1 {[%clk 0:02:15.5]}
23... Nb3 {[%clk 0:02:20.7]} 24. Rc3 {[%clk 0:02:13.5]} 24... Nc5 {[%clk
0:02:20.9]} 25. b4 {[%clk 0:02:13]} 25... Nce4+ {[%clk 0:02:20.4]} 26. fxe4
{[%clk 0:02:10]} 26... Nxe4+ {[%clk 0:02:21.3]} 27. Ke3 {[%clk 0:02:10.2]} 27...
Nxc3 {[%clk 0:02:21.8]} 28. Rd3 {[%clk 0:02:08.2]} 28... Nxe2 {[%clk 0:02:17.7]}
29. b5 {[%clk 0:01:53]} 29... Kc7 {[%clk 0:01:46.4]} 30. bxc6 {[%clk 0:01:53.2]}
30... dxc6 {[%clk 0:01:46.9]} 31. Na4 {[%clk 0:01:48.3]} 31... Ng1 {[%clk
0:01:38.8]} 32. c5 {[%clk 0:01:42.3]} 32... Nh3 {[%clk 0:01:33.7]} 33. Nb6
{[%clk 0:01:40.6]} 33... Rd8 {[%clk 0:01:31]} 34. Rxd8 {[%clk 0:01:35.6]} 34...
Kxd8 {[%clk 0:01:31.9]} 35. Nc4 {[%clk 0:01:35.3]} 35... f6 {[%clk 0:01:30.2]}
36. a4 {[%clk 0:01:33.7]} 36... Kc7 {[%clk 0:01:29.8]} 37. Nd6 {[%clk
0:01:32.6]} 37... e5 {[%clk 0:01:13.6]} 38. Ne8+ {[%clk 0:01:29.3]} 38... Kb7
{[%clk 0:01:13]} 39. Nxg7 {[%clk 0:01:29]} 39... Ka6 {[%clk 0:01:12.3]} 40. Nxh5
{[%clk 0:01:28.3]} 40... f5 {[%clk 0:01:12.9]} 41. Ng7 {[%clk 0:01:22.1]} 41...
f4+ {[%clk 0:01:12.6]} 42. gxf4 {[%clk 0:01:12.7]} 42... Nxf4 {[%clk 0:01:13.5]}
43. h4 {[%clk 0:01:10.4]} 43... Ng2+ {[%clk 0:01:12.5]} 44. Ke4 {[%clk
0:01:09.3]} 44... Nxh4 {[%clk 0:01:13.4]} 45. Kxe5 {[%clk 0:01:08.3]} 45... Nf3+
{[%clk 0:01:07.2]} 46. Kd6 {[%clk 0:01:07.1]} 46... Nd4 {[%clk 0:01:07.7]} 47.
Ne6 {[%clk 0:01:04.4]} 47... Nb3 {[%clk 0:01:07.9]} 48. Kxc6 {[%clk 0:00:52.8]}
48... Nd2 {[%clk 0:00:58.8]} 49. Kd5 {[%clk 0:00:48.4]} 49... Nb1 {[%clk
0:00:57.3]} 50. c6 {[%clk 0:00:47.1]} 50... Nc3+ {[%clk 0:00:57.2]} 51. Kd6
{[%clk 0:00:43.6]} 51... Nxa4 {[%clk 0:00:52.6]} 52. Nc5+ {[%clk 0:00:35.6]}
52... Nxc5 {[%clk 0:00:47.9]} 53. Kxc5 {[%clk 0:00:36.5]} 53... Ka7 {[%clk
0:00:48.3]} 54. Kd6 {[%clk 0:00:36.9]} 1-0

[Event "*** Titled Tuesday Blitz"]
[Site "Chess.com"]
[Date "2021.03.09"]
[Round "6"]
[White "dropstoneDP"]
[Black "stoleriu"]
[Result "1-0"]
[WhiteElo "2894"]
[BlackElo "2606"]
[TimeControl "180+1"]
[EndTime "11:10:28 PST"]
[Termination "dropstoneDP won by resignation"]

1. e4 {[%clk 0:03:00.9]} 1... e6 {[%clk 0:03:00.1]} 2. d4 {[%clk 0:03:00.5]}
2... d5 {[%clk 0:03:00.5]} 3. Nc3 {[%clk 0:03:00.7]} 3... Bb4 {[%clk 0:03:00.5]}
4. e5 {[%clk 0:03:00.9]} 4... c5 {[%clk 0:03:00.9]} 5. a3 {[%clk 0:03:01]} 5...
Bxc3+ {[%clk 0:03:01.4]} 6. bxc3 {[%clk 0:03:01.9]} 6... Qc7 {[%clk 0:03:02.3]}
7. h4 {[%clk 0:02:59.8]} 7... Ne7 {[%clk 0:02:58.6]} 8. h5 {[%clk 0:02:59.3]}
8... h6 {[%clk 0:02:59.1]} 9. Rb1 {[%clk 0:02:59]} 9... b6 {[%clk 0:02:59]} 10.
Bb5+ {[%clk 0:02:58.5]} 10... Bd7 {[%clk 0:02:59.4]} 11. Bd3 {[%clk 0:02:58.8]}
11... Nbc6 {[%clk 0:02:57.8]} 12. Qg4 {[%clk 0:02:53]} 12... Kf8 {[%clk
0:02:57.9]} 13. Nf3 {[%clk 0:02:47.9]} 13... Na5 {[%clk 0:02:50.1]} 14. O-O
{[%clk 0:02:46.6]} 14... Ba4 {[%clk 0:02:47.2]} 15. dxc5 {[%clk 0:02:34.6]}
15... Nc4 {[%clk 0:02:45.7]} 16. cxb6 {[%clk 0:02:29.9]} 16... axb6 {[%clk
0:02:42.5]} 17. Bxc4 {[%clk 0:02:25.7]} 17... Qxc4 {[%clk 0:02:43.4]} 18. Qxc4
{[%clk 0:02:24.8]} 18... dxc4 {[%clk 0:02:44.3]} 19. Rxb6 {[%clk 0:02:18]} 19...
Nd5 {[%clk 0:02:43.2]} 20. Rb2 {[%clk 0:02:06.9]} 20... Nxc3 {[%clk 0:02:40.5]}
21. Be3 {[%clk 0:02:07.6]} 21... Nd5 {[%clk 0:02:27.3]} 22. Bc5+ {[%clk
0:02:06]} 22... Kg8 {[%clk 0:02:27.6]} 23. Nd4 {[%clk 0:01:54.8]} 23... c3
{[%clk 0:02:12.6]} 24. Rb7 {[%clk 0:01:54]} 24... Nf4 {[%clk 0:01:37.7]} 25.
Rfb1 {[%clk 0:01:23.5]} 25... Nxh5 {[%clk 0:01:34.6]} 26. g3 {[%clk 0:01:22.6]}
26... g5 {[%clk 0:01:28.5]} 27. Rc7 {[%clk 0:01:20]} 27... Ng7 {[%clk
0:01:12.3]} 28. Rbb7 {[%clk 0:01:18.1]} 28... Be8 {[%clk 0:01:12.6]} 29. Be7
{[%clk 0:01:06]} 29... Ra4 {[%clk 0:00:52.2]} 30. Nb5 {[%clk 0:00:46.7]} 30...
Bxb5 {[%clk 0:00:29.7]} 31. Rxb5 {[%clk 0:00:47.6]} 31... Kh7 {[%clk 0:00:30.3]}
32. Bb4 {[%clk 0:00:47.6]} 32... Kg6 {[%clk 0:00:19]} 33. Rbb7 {[%clk
0:00:47.6]} 33... Rd8 {[%clk 0:00:16.6]} 34. g4 {[%clk 0:00:44.5]} 34... Rd4
{[%clk 0:00:12]} 35. f3 {[%clk 0:00:44.5]} 35... h5 {[%clk 0:00:12.5]} 36. Rxf7
{[%clk 0:00:41.4]} 36... hxg4 {[%clk 0:00:12.4]} 37. Rxg7+ {[%clk 0:00:41.7]}
37... Kf5 {[%clk 0:00:12.6]} 38. Rbf7+ {[%clk 0:00:42]} 38... Kxe5 {[%clk
0:00:12.6]} 39. Bxc3 {[%clk 0:00:42.8]} 39... gxf3 {[%clk 0:00:06.8]} 40. Rxf3
{[%clk 0:00:42.2]} 1-0

[Event "*** Titled Tuesday Blitz"]
[Site "Chess.com"]
[Date "2021.03.09"]
[Round "6"]
[White "Pelopidass"]
[Black "lamomiablanca"]
[Result "0-1"]
[WhiteElo "2559"]
[BlackElo "2412"]
[TimeControl "180+1"]
[EndTime "11:10:30 PST"]
[Termination "lamomiablanca won by resignation"]

1. d4 {[%clk 0:03:00.9]} 1... Nf6 {[%clk 0:02:59.4]} 2. Nf3 {[%clk 0:03:00.6]}
2... g6 {[%clk 0:02:58.6]} 3. g3 {[%clk 0:03:01.1]} 3... Bg7 {[%clk 0:02:58.1]}
4. Bg2 {[%clk 0:03:01.7]} 4... O-O {[%clk 0:02:58.2]} 5. O-O {[%clk 0:03:02.2]}
5... d5 {[%clk 0:02:54.6]} 6. c4 {[%clk 0:02:59.2]} 6... c6 {[%clk 0:02:54.1]}
7. cxd5 {[%clk 0:02:53.9]} 7... cxd5 {[%clk 0:02:53.8]} 8. Nc3 {[%clk
0:02:54.4]} 8... Ne4 {[%clk 0:02:52.8]} 9. Nxe4 {[%clk 0:02:21.3]} 9... dxe4
{[%clk 0:02:51.8]} 10. Ne5 {[%clk 0:02:21.8]} 10... Bf5 {[%clk 0:02:11.9]} 11.
b3 {[%clk 0:02:12.4]} 11... Nc6 {[%clk 0:02:03.9]} 12. Bb2 {[%clk 0:01:46.1]}
12... Nxe5 {[%clk 0:01:55.7]} 13. dxe5 {[%clk 0:01:47]} 13... Qa5 {[%clk
0:01:53.2]} 14. Qe1 {[%clk 0:01:20.5]} 14... Qb5 {[%clk 0:01:50.3]} 15. Rd1
{[%clk 0:00:40]} 15... Bxe5 {[%clk 0:01:31.7]} 16. Bxe5 {[%clk 0:00:39.5]} 16...
Qxe5 {[%clk 0:01:31]} 17. Qb4 {[%clk 0:00:40.1]} 17... b6 {[%clk 0:01:25.3]} 18.
Rd4 {[%clk 0:00:40.4]} 18... a5 {[%clk 0:01:16.8]} 19. Qd2 {[%clk 0:00:36.3]}
19... Rac8 {[%clk 0:01:08]} 20. g4 {[%clk 0:00:33.9]} 20... Bxg4 {[%clk
0:01:00]} 21. Rxe4 {[%clk 0:00:33]} 21... Qh5 {[%clk 0:00:50.6]} 22. Rxe7 {[%clk
0:00:26.6]} 22... Rc5 {[%clk 0:00:40.3]} 23. Re3 {[%clk 0:00:14.4]} 23... Rfc8
{[%clk 0:00:31.6]} 24. h3 {[%clk 0:00:13.1]} 24... Be6 {[%clk 0:00:27.9]} 25.
Rd1 {[%clk 0:00:10.7]} 25... Rc2 {[%clk 0:00:19.2]} 26. Qd6 {[%clk 0:00:10]}
26... Rxe2 {[%clk 0:00:16.4]} 27. Bf3 {[%clk 0:00:05.4]} 27... Qg5+ {[%clk
0:00:16.1]} 28. Kh2 {[%clk 0:00:05.4]} 28... Rxf2+ {[%clk 0:00:15.8]} 29. Kh1
{[%clk 0:00:04.7]} 29... Qxe3 {[%clk 0:00:15.7]} 0-1

[Event "*** Titled Tuesday Blitz"]
[Site "Chess.com"]
[Date "2021.03.09"]
[Round "6"]
[White "kingofthenil"]
[Black "PetrolulSah"]
[Result "1-0"]
[WhiteElo "2775"]
[BlackElo "2211"]
[TimeControl "180+1"]
[EndTime "11:10:31 PST"]
[Termination "kingofthenil won on time"]

1. e4 {[%clk 0:03:00.9]} 1... e5 {[%clk 0:02:59.9]} 2. Nf3 {[%clk 0:02:57.9]}
2... Nc6 {[%clk 0:03:00]} 3. Bc4 {[%clk 0:02:52.5]} 3... Bc5 {[%clk 0:02:58.4]}
4. c3 {[%clk 0:02:50.3]} 4... Nf6 {[%clk 0:02:57.9]} 5. d3 {[%clk 0:02:46.8]}
5... O-O {[%clk 0:02:56.9]} 6. Bb3 {[%clk 0:02:43.9]} 6... d6 {[%clk 0:02:50.2]}
7. Bg5 {[%clk 0:02:43.4]} 7... h6 {[%clk 0:02:50.1]} 8. Bh4 {[%clk 0:02:42.5]}
8... Be6 {[%clk 0:02:46.4]} 9. Nbd2 {[%clk 0:02:40.6]} 9... Qd7 {[%clk
0:02:43.9]} 10. Bxf6 {[%clk 0:02:38.2]} 10... gxf6 {[%clk 0:02:43.9]} 11. Nh4
{[%clk 0:02:34]} 11... Ne7 {[%clk 0:02:37.2]} 12. Qh5 {[%clk 0:02:30.4]} 12...
Kh7 {[%clk 0:02:35]} 13. h3 {[%clk 0:02:30.5]} 13... Rg8 {[%clk 0:02:31.1]} 14.
Ndf3 {[%clk 0:02:30.9]} 14... Ng6 {[%clk 0:02:19.4]} 15. g3 {[%clk 0:02:27.1]}
15... Ne7 {[%clk 0:01:59.7]} 16. Ke2 {[%clk 0:02:04.8]} 16... Rg7 {[%clk
0:01:44.1]} 17. Bxe6 {[%clk 0:01:45]} 17... fxe6 {[%clk 0:01:40.3]} 18. g4
{[%clk 0:01:45.2]} 18... Ng6 {[%clk 0:01:23.6]} 19. Nxg6 {[%clk 0:01:44]} 19...
Rxg6 {[%clk 0:01:23.1]} 20. h4 {[%clk 0:01:44.9]} 20... Rag8 {[%clk 0:00:50.1]}
21. g5 {[%clk 0:01:42.3]} 21... f5 {[%clk 0:00:49.3]} 22. Rag1 {[%clk
0:01:38.5]} 22... fxe4 {[%clk 0:00:41.8]} 23. dxe4 {[%clk 0:01:36.5]} 23... Qf7
{[%clk 0:00:27.3]} 24. gxh6 {[%clk 0:01:26.7]} 24... Qf4 {[%clk 0:00:27.3]} 25.
Ng5+ {[%clk 0:01:03.7]} 25... Kh8 {[%clk 0:00:15.3]} 26. Qf3 {[%clk 0:00:56.7]}
26... d5 {[%clk 0:00:04.6]} 27. Qxf4 {[%clk 0:00:50]} 27... exf4 {[%clk
0:00:05.5]} 28. Rg4 {[%clk 0:00:30.6]} 28... Rf8 {[%clk 0:00:04.9]} 29. Nf7+
{[%clk 0:00:26.5]} 29... Kh7 {[%clk 0:00:04.2]} 30. Ng5+ {[%clk 0:00:25.2]}
30... Kh8 {[%clk 0:00:03.4]} 31. Rhg1 {[%clk 0:00:24.7]} 31... f3+ {[%clk
0:00:01.5]} 32. Nxf3 {[%clk 0:00:23.7]} 32... Rxg4 {[%clk 0:00:01.6]} 33. Rxg4
{[%clk 0:00:24.6]} 1-0

[Event "*** Titled Tuesday Blitz"]
[Site "Chess.com"]
[Date "2021.03.09"]
[Round "6"]
[White "paulrusan"]
[Black "Omk124"]
[Result "0-1"]
[WhiteElo "2311"]
[BlackElo "2456"]
[TimeControl "180+1"]
[EndTime "11:10:31 PST"]
[Termination "Omk124 won by resignation"]

1. e4 {[%clk 0:03:00.3]} 1... c5 {[%clk 0:02:58.9]} 2. b4 {[%clk 0:02:59.9]}
2... cxb4 {[%clk 0:02:58.2]} 3. Bb2 {[%clk 0:02:59.6]} 3... Nc6 {[%clk
0:02:57.5]} 4. d4 {[%clk 0:02:59.1]} 4... d5 {[%clk 0:02:56.8]} 5. exd5 {[%clk
0:02:59.6]} 5... Qxd5 {[%clk 0:02:57.4]} 6. c4 {[%clk 0:03:00.1]} 6... bxc3
{[%clk 0:02:57.5]} 7. Nxc3 {[%clk 0:03:00.6]} 7... Qxd4 {[%clk 0:02:54.8]} 8.
Nd5 {[%clk 0:03:00.5]} 8... Qe4+ {[%clk 0:02:39.4]} 9. Be2 {[%clk 0:02:59.7]}
9... Bd7 {[%clk 0:02:24.4]} 10. Nc7+ {[%clk 0:02:59.5]} 10... Kd8 {[%clk
0:02:24.7]} 11. Nxa8 {[%clk 0:03:00.1]} 11... Qxg2 {[%clk 0:02:17.8]} 12. Bf3
{[%clk 0:03:00.1]} 12... Qg5 {[%clk 0:02:16.9]} 13. Ne2 {[%clk 0:02:53]} 13...
e6 {[%clk 0:02:10.5]} 14. Rg1 {[%clk 0:02:50]} 14... Qa5+ {[%clk 0:02:09.8]} 15.
Kf1 {[%clk 0:02:43.5]} 15... Nf6 {[%clk 0:02:09.9]} 16. Rc1 {[%clk 0:02:29.4]}
16... Bc5 {[%clk 0:01:55.5]} 17. Rxg7 {[%clk 0:02:20]} 17... Ke7 {[%clk
0:01:54.9]} 18. Nc7 {[%clk 0:02:13.6]} 18... Rd8 {[%clk 0:01:24.2]} 19. Qb3
{[%clk 0:01:47.5]} 19... Bb4 {[%clk 0:00:52.7]} 20. a3 {[%clk 0:01:37]} 20...
Bd2 {[%clk 0:00:46.6]} 21. Nb5 {[%clk 0:01:21.8]} 21... Bxc1 {[%clk 0:00:43.4]}
22. Bxc1 {[%clk 0:01:10.6]} 22... Ne5 {[%clk 0:00:33.7]} 23. Ned4 {[%clk
0:00:54.3]} 23... Bxb5+ {[%clk 0:00:30.4]} 24. Nxb5 {[%clk 0:00:52]} 24... Nxf3
{[%clk 0:00:30.5]} 25. Qxf3 {[%clk 0:00:51.3]} 25... Qxb5+ {[%clk 0:00:30.6]}
26. Kg2 {[%clk 0:00:48]} 26... Qd5 {[%clk 0:00:28.8]} 27. Bg5 {[%clk 0:00:42.7]}
27... Qxf3+ {[%clk 0:00:22.2]} 28. Kxf3 {[%clk 0:00:42.8]} 28... Rd3+ {[%clk
0:00:22.8]} 29. Ke2 {[%clk 0:00:41.2]} 29... Rxa3 {[%clk 0:00:22.1]} 30. Rxh7
{[%clk 0:00:41.6]} 30... Ra5 {[%clk 0:00:22.2]} 31. f4 {[%clk 0:00:40.6]} 31...
Rxg5 {[%clk 0:00:21.2]} 32. Rh8 {[%clk 0:00:33.7]} 32... Rb5 {[%clk 0:00:20]}
33. Kf3 {[%clk 0:00:30.5]} 33... a5 {[%clk 0:00:20.3]} 34. h4 {[%clk 0:00:30.2]}
34... a4 {[%clk 0:00:20.6]} 35. Ra8 {[%clk 0:00:29.3]} 35... Rb3+ {[%clk
0:00:20.9]} 36. Kg2 {[%clk 0:00:27.9]} 36... a3 {[%clk 0:00:21.8]} 37. Ra5
{[%clk 0:00:25.5]} 37... Nd5 {[%clk 0:00:20.3]} 38. h5 {[%clk 0:00:24.3]} 38...
Nxf4+ {[%clk 0:00:20.7]} 39. Kf2 {[%clk 0:00:24]} 39... Nxh5 {[%clk 0:00:21.6]}
0-1

[Event "*** Titled Tuesday Blitz"]
[Site "Chess.com"]
[Date "2021.03.09"]
[Round "6"]
[White "Gerasimenyuk_Miha"]
[Black "Faqade"]
[Result "0-1"]
[WhiteElo "2430"]
[BlackElo "2620"]
[TimeControl "180+1"]
[EndTime "11:10:32 PST"]
[Termination "Faqade won by resignation"]

1. d4 {[%clk 0:02:59.1]} 1... Nf6 {[%clk 0:02:59.5]} 2. Nf3 {[%clk 0:02:59.6]}
2... g6 {[%clk 0:02:59.9]} 3. Bg5 {[%clk 0:02:59.9]} 3... Bg7 {[%clk 0:03:00.2]}
4. e3 {[%clk 0:03:00.5]} 4... O-O {[%clk 0:02:59.9]} 5. Bd3 {[%clk 0:03:00.7]}
5... d6 {[%clk 0:03:00.2]} 6. c3 {[%clk 0:03:01.2]} 6... c5 {[%clk 0:02:54.3]}
7. Nbd2 {[%clk 0:03:00.7]} 7... Nc6 {[%clk 0:02:54]} 8. h4 {[%clk 0:03:01.2]}
8... h6 {[%clk 0:02:53.2]} 9. h5 {[%clk 0:03:01.5]} 9... Nxh5 {[%clk 0:02:42.3]}
10. Rxh5 {[%clk 0:02:57]} 10... gxh5 {[%clk 0:02:43.2]} 11. Nh4 {[%clk
0:02:54.5]} 11... Bg4 {[%clk 0:02:29.9]} 12. f3 {[%clk 0:02:44.1]} 12... hxg5
{[%clk 0:02:28.5]} 13. fxg4 {[%clk 0:02:44.3]} 13... gxh4 {[%clk 0:01:57.8]} 14.
g5 {[%clk 0:02:45.2]} 14... f5 {[%clk 0:01:57.8]} 15. Qxh5 {[%clk 0:02:40.6]}
15... Qe8 {[%clk 0:01:53.8]} 16. g6 {[%clk 0:02:29.9]} 16... Rf6 {[%clk
0:01:53.3]} 17. Bxf5 {[%clk 0:02:23.5]} 17... e6 {[%clk 0:01:30]} 18. Bd3 {[%clk
0:02:21.6]} 18... d5 {[%clk 0:01:29.9]} 19. Nf3 {[%clk 0:02:16.9]} 19... cxd4
{[%clk 0:01:07.6]} 20. exd4 {[%clk 0:02:05.6]} 20... Ne7 {[%clk 0:00:42.8]} 21.
Ne5 {[%clk 0:01:40.2]} 21... Nf5 {[%clk 0:00:42]} 22. O-O-O {[%clk 0:01:28.5]}
22... Bh6+ {[%clk 0:00:41]} 23. Kb1 {[%clk 0:01:25.6]} 23... Kg7 {[%clk
0:00:41.5]} 24. g4 {[%clk 0:00:42.4]} 24... hxg3 {[%clk 0:00:42.4]} 25. Rh1
{[%clk 0:00:39.2]} 25... Rxg6 {[%clk 0:00:42.5]} 26. Nxg6 {[%clk 0:00:31.2]}
26... Qxg6 {[%clk 0:00:42]} 27. Qf3 {[%clk 0:00:28.4]} 27... Rg8 {[%clk
0:00:37.5]} 28. Rg1 {[%clk 0:00:27]} 28... Kf8 {[%clk 0:00:36.8]} 29. a3 {[%clk
0:00:22.4]} 29... Ke7 {[%clk 0:00:36.7]} 30. Re1 {[%clk 0:00:21]} 30... g2
{[%clk 0:00:36.2]} 31. Qxd5 {[%clk 0:00:13.2]} 31... g1=Q {[%clk 0:00:35.7]} 32.
Qxb7+ {[%clk 0:00:12.4]} 32... Kf6 {[%clk 0:00:35.9]} 33. Rxg1 {[%clk
0:00:12.5]} 33... Qxg1+ {[%clk 0:00:36.8]} 34. Ka2 {[%clk 0:00:12.9]} 34... Qg3
{[%clk 0:00:36.9]} 35. Bxf5 {[%clk 0:00:11.5]} 35... exf5 {[%clk 0:00:36.1]} 36.
Qd5 {[%clk 0:00:11.1]} 36... Re8 {[%clk 0:00:34.8]} 37. Qd6+ {[%clk 0:00:10.3]}
37... Qxd6 {[%clk 0:00:34.2]} 0-1

[Event "*** Titled Tuesday Blitz"]
[Site "Chess.com"]
[Date "2021.03.09"]
[Round "6"]
[White "Trickster_Pony"]
[Black "CzechmVIII"]
[Result "0-1"]
[WhiteElo "1461"]
[BlackElo "2244"]
[TimeControl "180+1"]
[EndTime "11:10:32 PST"]
[Termination "CzechmVIII won by checkmate"]

1. c4 {[%clk 0:03:00.9]} 1... Nf6 {[%clk 0:02:59.9]} 2. g3 {[%clk 0:03:00.3]}
2... e5 {[%clk 0:02:59.5]} 3. Bg2 {[%clk 0:03:00.2]} 3... d5 {[%clk 0:02:59.7]}
4. cxd5 {[%clk 0:02:59.6]} 4... Nxd5 {[%clk 0:03:00.6]} 5. Nc3 {[%clk
0:02:59.4]} 5... Nb6 {[%clk 0:02:59.9]} 6. Nf3 {[%clk 0:02:59.6]} 6... Nc6
{[%clk 0:03:00]} 7. O-O {[%clk 0:03:00]} 7... Be7 {[%clk 0:03:00.3]} 8. d3
{[%clk 0:03:00.1]} 8... O-O {[%clk 0:03:00.3]} 9. a3 {[%clk 0:03:00.3]} 9... Re8
{[%clk 0:03:00.1]} 10. b4 {[%clk 0:03:00]} 10... Bf8 {[%clk 0:03:00.3]} 11. Bb2
{[%clk 0:02:57.7]} 11... a5 {[%clk 0:02:59.8]} 12. b5 {[%clk 0:02:57.5]} 12...
Nd4 {[%clk 0:03:00]} 13. a4 {[%clk 0:02:57.5]} 13... Bg4 {[%clk 0:02:43.2]} 14.
Nxd4 {[%clk 0:02:52.8]} 14... exd4 {[%clk 0:02:41.7]} 15. Ne4 {[%clk 0:02:46.4]}
15... f5 {[%clk 0:02:31.1]} 16. h3 {[%clk 0:02:31.3]} 16... Bh5 {[%clk
0:02:25.6]} 17. Nd2 {[%clk 0:02:25.2]} 17... Bxe2 {[%clk 0:02:09.5]} 18. Qb3+
{[%clk 0:02:24.4]} 18... Kh8 {[%clk 0:02:09.8]} 19. Rfe1 {[%clk 0:02:13.8]}
19... Bb4 {[%clk 0:01:58.3]} 20. Bc1 {[%clk 0:01:44.9]} 20... Qf6 {[%clk
0:01:40]} 21. Bxb7 {[%clk 0:01:23.7]} 21... Bh5 {[%clk 0:01:17.7]} 22. Rf1
{[%clk 0:01:10.2]} 22... Rad8 {[%clk 0:01:06.9]} 23. Bc6 {[%clk 0:01:09.6]}
23... Re7 {[%clk 0:00:46.8]} 24. Ba3 {[%clk 0:00:55.9]} 24... Bxd2 {[%clk
0:00:34.8]} 25. Bxe7 {[%clk 0:00:55.1]} 25... Qxe7 {[%clk 0:00:35.2]} 26. Ra2
{[%clk 0:00:54.5]} 26... Bc3 {[%clk 0:00:32.4]} 27. Qb1 {[%clk 0:00:36.3]} 27...
Bf7 {[%clk 0:00:29.2]} 28. Rc2 {[%clk 0:00:28.9]} 28... Bd5 {[%clk 0:00:28.9]}
29. Bxd5 {[%clk 0:00:27.7]} 29... Nxd5 {[%clk 0:00:29.8]} 30. Qa2 {[%clk
0:00:22.8]} 30... Nb4 {[%clk 0:00:27.7]} 31. Re2 {[%clk 0:00:20.7]} 31... Qd6
{[%clk 0:00:15.5]} 32. Qb1 {[%clk 0:00:18.9]} 32... f4 {[%clk 0:00:14.9]} 33.
Kh1 {[%clk 0:00:15]} 33... f3 {[%clk 0:00:13.3]} 34. Re4 {[%clk 0:00:14.5]}
34... Qd7 {[%clk 0:00:12.9]} 35. Rc1 {[%clk 0:00:13.2]} 35... Qxh3+ {[%clk
0:00:12.2]} 36. Kg1 {[%clk 0:00:12.9]} 36... Qg2# {[%clk 0:00:12.2]} 0-1

[Event "*** Titled Tuesday Blitz"]
[Site "Chess.com"]
[Date "2021.03.09"]
[Round "6"]
[White "Sergey85Rodchenkov"]
[Black "GregShahade"]
[Result "0-1"]
[WhiteElo "2511"]
[BlackElo "2758"]
[TimeControl "180+1"]
[EndTime "11:10:33 PST"]
[Termination "GregShahade won by resignation"]

1. e4 {[%clk 0:03:00.9]} 1... e5 {[%clk 0:03:00.2]} 2. Nf3 {[%clk 0:03:00.5]}
2... Nc6 {[%clk 0:03:00.7]} 3. Bc4 {[%clk 0:03:00.1]} 3... Nf6 {[%clk
0:03:00.5]} 4. d3 {[%clk 0:02:59.8]} 4... Bc5 {[%clk 0:03:00.2]} 5. O-O {[%clk
0:02:59]} 5... a6 {[%clk 0:03:00.2]} 6. c3 {[%clk 0:02:58.9]} 6... d6 {[%clk
0:03:00.5]} 7. Re1 {[%clk 0:02:57.9]} 7... Ba7 {[%clk 0:03:00.5]} 8. Bb3 {[%clk
0:02:56.8]} 8... O-O {[%clk 0:03:00.5]} 9. Nbd2 {[%clk 0:02:56.7]} 9... h6
{[%clk 0:02:57.3]} 10. Nf1 {[%clk 0:02:56.8]} 10... Re8 {[%clk 0:02:57.5]} 11.
Ng3 {[%clk 0:02:56.5]} 11... Be6 {[%clk 0:02:57.8]} 12. Bxe6 {[%clk 0:02:55.7]}
12... Rxe6 {[%clk 0:02:58.7]} 13. Be3 {[%clk 0:02:54.3]} 13... Bxe3 {[%clk
0:02:57.6]} 14. Rxe3 {[%clk 0:02:54.6]} 14... d5 {[%clk 0:02:57.3]} 15. Qb3
{[%clk 0:02:52.8]} 15... b6 {[%clk 0:02:47.1]} 16. h3 {[%clk 0:02:44.5]} 16...
Qd7 {[%clk 0:02:30]} 17. Ree1 {[%clk 0:02:37.7]} 17... Rae8 {[%clk 0:02:22.7]}
18. Nf5 {[%clk 0:02:31.9]} 18... Kh7 {[%clk 0:02:17.9]} 19. Qc2 {[%clk
0:02:27.6]} 19... g6 {[%clk 0:02:15.1]} 20. Ng3 {[%clk 0:02:27.2]} 20... Rd8
{[%clk 0:02:13.2]} 21. b4 {[%clk 0:02:20.5]} 21... Kg7 {[%clk 0:01:58.4]} 22. a3
{[%clk 0:02:20.3]} 22... dxe4 {[%clk 0:01:52.7]} 23. dxe4 {[%clk 0:02:17.4]}
23... Qd3 {[%clk 0:01:52.7]} 24. Qb2 {[%clk 0:02:14.9]} 24... Red6 {[%clk
0:01:44.2]} 25. Re3 {[%clk 0:02:08.1]} 25... Qc4 {[%clk 0:01:42.6]} 26. a4
{[%clk 0:02:00.4]} 26... Rd1+ {[%clk 0:01:37.4]} 27. Rxd1 {[%clk 0:01:59.4]}
27... Rxd1+ {[%clk 0:01:38.3]} 28. Kh2 {[%clk 0:01:59.8]} 28... b5 {[%clk
0:01:38.6]} 29. axb5 {[%clk 0:01:59.1]} 29... axb5 {[%clk 0:01:38.3]} 30. Nd2
{[%clk 0:01:48.9]} 30... Qe6 {[%clk 0:01:38.3]} 31. Nb3 {[%clk 0:01:44.6]} 31...
Qd6 {[%clk 0:01:33.8]} 32. Re2 {[%clk 0:01:37.9]} 32... h5 {[%clk 0:01:21.8]}
33. Rd2 {[%clk 0:01:19.6]} 33... Rxd2 {[%clk 0:01:20]} 34. Nxd2 {[%clk
0:01:20.1]} 34... Qd3 {[%clk 0:01:17.8]} 35. f3 {[%clk 0:01:09.5]} 35... h4
{[%clk 0:01:17.4]} 36. Ngf1 {[%clk 0:01:03]} 36... Nh5 {[%clk 0:01:17.6]} 37.
Kg1 {[%clk 0:01:00.2]} 37... Nf4 {[%clk 0:01:16.2]} 38. Nb3 {[%clk 0:00:58.6]}
38... Ne2+ {[%clk 0:01:10.1]} 39. Kf2 {[%clk 0:00:56.4]} 39... Nxc3 {[%clk
0:01:07.4]} 40. Kg1 {[%clk 0:00:26.4]} 40... Ne2+ {[%clk 0:01:07.3]} 41. Kh2
{[%clk 0:00:25.8]} 41... Ned4 {[%clk 0:01:03.4]} 42. Nxd4 {[%clk 0:00:24.1]}
42... Nxd4 {[%clk 0:01:02.7]} 43. Nd2 {[%clk 0:00:23.6]} 43... Qe2 {[%clk
0:00:56.4]} 44. Qc3 {[%clk 0:00:23]} 44... Qe1 {[%clk 0:00:53.2]} 45. Qxc7
{[%clk 0:00:20]} 45... Qxd2 {[%clk 0:00:47.6]} 46. Qxe5+ {[%clk 0:00:20]} 46...
Kh7 {[%clk 0:00:48.1]} 47. Qf6 {[%clk 0:00:18.2]} 47... Kg8 {[%clk 0:00:41.2]}
48. Qxh4 {[%clk 0:00:17.2]} 48... Nxf3+ {[%clk 0:00:40.4]} 0-1